bitfinex/quotes_BTCUSD_20240820
["timestamp","ask_amount","ask_price","bid_price","bid_amount"]
[1724120712918,1.44373577,60481.0,60480.0,0.070175]
[1724120713433,1.45773577,60481.0,60480.0,0.070175]
[1724120715007,1.35773577,60481.0,60480.0,0.070175]
[1724120715353,1.43783577,60481.0,60480.0,0.009075]
[1724120716361,1.43783577,60481.0,60480.0,0.149875]
[1724120716362,1.35773577,60481.0,60480.0,0.149875]
[1724120719647,1.35673577,60481.0,60480.0,0.149875]
[1724120719849,1.35773577,60481.0,60480.0,0.149875]
[1724120720405,1.34373577,60481.0,60480.0,0.149875]
[1724120720617,1.34373577,60481.0,60480.0,0.009075]
[1724120720618,1.40643577,60481.0,60480.0,0.009075]
[1724120720819,1.34373577,60481.0,60480.0,0.009075]
[1724120721226,1.34373577,60481.0,60480.0,0.084075]
[1724120721438,1.35673577,60481.0,60480.0,0.084075]
[1724120721627,1.35673577,60481.0,60480.0,0.147875]
[1724120721628,1.35773577,60481.0,60480.0,0.147875]
[1724120721832,0.525023,60481.0,60480.0,0.147875]
[1724120722033,0.194341,60481.0,60480.0,0.147875]
[1724120722694,0.525023,60481.0,60480.0,0.147875]
[1724120722857,0.511023,60481.0,60480.0,0.147875]
[1724120723275,0.497023,60481.0,60480.0,0.147875]
[1724120723483,0.525023,60481.0,60480.0,0.147875]
[1724120723862,0.014,60481.0,60480.0,0.313218]
[1724120724086,0.014,60481.0,60480.0,0.32156895]
[1724120724285,0.028,60481.0,60480.0,0.32156895]
[1724120724689,0.014,60481.0,60480.0,0.32156895]
[1724120724936,0.165325,60487.0,60482.0,0.1402]
[1724120725052,0.165321,60489.0,60483.0,0.305534]
[1724120725250,0.165321,60489.0,60484.0,0.15450254]
[1724120725504,0.165321,60489.0,60486.0,0.0818]
[1724120725678,0.000825,60491.0,60488.0,0.1462]
[1724120725882,0.000825,60491.0,60487.0,0.1686299]
[1724120726087,0.000825,60491.0,60489.0,0.00824581]
[1724120726458,0.000825,60491.0,60490.0,0.1456]
[1724120726863,0.006825,60491.0,60490.0,0.1456]
[1724120727496,0.012825,60491.0,60490.0,0.1456]
[1724120727709,0.006825,60491.0,60490.0,0.1456]
[1724120727918,0.000825,60491.0,60490.0,0.1456]
[1724120728134,0.012825,60491.0,60490.0,0.1456]
[1724120732405,0.178138,60491.0,60490.0,0.1456]
[1724120733873,0.165324,60487.0,60486.0,0.0813]
[1724120734201,0.001,60486.0,60481.0,0.0779]
[1724120734448,0.496014,60482.0,60481.0,0.0779]
[1724120734669,0.496014,60482.0,60481.0,0.1435]
[1724120736756,0.497014,60482.0,60481.0,0.1435]
[1724120736953,0.496014,60482.0,60481.0,0.1435]
[1724120737384,0.166338,60482.0,60481.0,0.1435]
[1724120737616,0.001,60482.0,60481.0,0.1435]
[1724120737800,0.003,60482.0,60481.0,0.1435]
[1724120738990,0.003,60482.0,60481.0,0.308841]
[1724120739689,0.003,60482.0,60481.0,0.1435]
[1724120739819,0.004,60482.0,60481.0,0.1435]
[1724120740028,0.003,60482.0,60481.0,0.1435]
[1724120740227,0.333676,60482.0,60481.0,0.0656]
[1724120741146,0.499014,60482.0,60481.0,0.0656]
[1724120743576,0.499014,60482.0,60481.0,0.0665075]
[1724120745250,0.500014,60482.0,60481.0,0.0009075]
[1724120745411,0.499014,60482.0,60481.0,0.0009075]
[1724120745588,0.500014,60482.0,60481.0,0.0009075]
[1724120745793,0.499014,60482.0,60481.0,0.0009075]
[1724120746485,0.500014,60482.0,60481.0,0.0009075]
[1724120747976,0.499014,60482.0,60481.0,0.0009075]
[1724120748588,1.09324777,60482.0,60481.0,0.0009075]
[1724120748835,1.42292377,60482.0,60481.0,0.0009075]
[1724120749037,1.33171477,60482.0,60481.0,0.0009075]
[1724120749486,1.39731477,60482.0,60481.0,0.0009075]
[1724120749664,1.40541247,60482.0,60481.0,0.0009075]
[1724120749951,1.40941247,60482.0,60481.0,0.0009075]
[1724120750124,1.56259372,60482.0,60481.0,0.0009075]
[1724120750329,1.63929372,60482.0,60481.0,0.0009075]
[1724120750536,1.63029372,60482.0,60481.0,0.0009075]
[1724120750739,1.65029372,60482.0,60481.0,0.0009075]
[1724120750950,1.83278847,60482.0,60481.0,0.0009075]
[1724120751155,1.92278847,60482.0,60481.0,0.0009075]
[1724120751335,1.93478847,60482.0,60481.0,0.0009075]
[1724120751563,1.36181247,60482.0,60481.0,0.0009075]
[1724120751766,1.34981247,60482.0,60481.0,0.0009075]
[1724120752175,1.33981247,60482.0,60481.0,0.0009075]
[1724120752487,1.35381247,60482.0,60481.0,0.0009075]
[1724120753316,0.84169,60482.0,60481.0,0.0009075]
[1724120753518,0.510014,60482.0,60481.0,0.0786075]
[1724120753721,0.522014,60482.0,60481.0,0.0786075]
[1724120753950,0.026,60482.0,60481.0,0.1400075]
[1724120754115,0.190338,60482.0,60481.0,0.1400075]
[1724120754293,0.025,60482.0,60481.0,0.1400075]
[1724120754524,0.013,60482.0,60481.0,0.1400075]
[1724120755152,0.16533,60485.0,60482.0,0.1391]
[1724120755361,0.16533,60485.0,60483.0,0.0614]
[1724120756299,0.17933,60485.0,60483.0,0.0614]
[1724120756678,0.001,60484.0,60483.0,0.0614]
[1724120756884,0.17933,60485.0,60483.0,0.0614]
[1724120757369,0.0762,60484.0,60481.0,0.0009075]
[1724120757569,0.0762,60484.0,60481.0,0.0627075]
[1724120757570,0.82769,60482.0,60481.0,0.0627075]
[1724120758977,0.82669,60482.0,60481.0,0.0627075]
[1724120759149,0.82769,60482.0,60481.0,0.0627075]
[1724120759349,0.165338,60482.0,60481.0,0.0627075]
[1724120759565,0.01,60482.0,60481.0,0.0627075]
[1724120760005,0.02,60482.0,60481.0,0.0627075]
[1724120760712,0.02,60482.0,60481.0,0.1399075]
[1724120765464,0.01,60482.0,60481.0,0.1399075]
[1724120765660,0.014,60482.0,60481.0,0.1399075]
[1724120766584,0.004,60482.0,60481.0,0.1399075]
[1724120767099,0.007,60482.0,60481.0,0.1399075]
[1724120772141,0.83469,60482.0,60481.0,0.0009075]
[1724120773127,0.83369,60482.0,60481.0,0.0009075]
[1724120773542,0.83469,60482.0,60481.0,0.0009075]
[1724120773722,1.164366,60482.0,60481.0,0.0009075]
[1724120773927,1.165366,60482.0,60481.0,0.0009075]
[1724120774235,0.83369,60482.0,60481.0,0.0009075]
[1724120774443,0.172338,60482.0,60481.0,0.0009075]
[1724120778153,0.007,60482.0,60481.0,0.0009075]
[1724120778290,0.007,60482.0,60481.0,0.1450075]
[1724120780489,0.007,60482.0,60481.0,0.3103485]
[1724120780695,0.007,60482.0,60481.0,1.14836725]
[1724120780913,0.007,60482.0,60481.0,1.61221802]
[1724120781120,0.007,60482.0,60481.0,1.24767558]
[1724120781323,0.007,60482.0,60481.0,1.17336725]
[1724120781737,0.000825,60486.0,60481.0,1.17336725]
[1724120781738,0.000825,60486.0,60485.0,0.82765]
[1724120781949,0.000825,60486.0,60485.0,1.39289877]
[1724120782973,0.000825,60486.0,60485.0,1.8008671]
[1724120783175,0.000825,60486.0,60485.0,1.94044247]
[1724120783384,0.000825,60486.0,60485.0,1.96213577]
[1724120783589,0.000825,60486.0,60485.0,1.86315587]
[1724120783793,0.000825,60486.0,60485.0,1.96213321]
[1724120784005,0.000825,60486.0,60485.0,1.96213331]
[1724120784217,0.000825,60486.0,60485.0,1.98693639]
[1724120784428,0.000825,60486.0,60485.0,1.96213044]
[1724120784653,0.001825,60486.0,60485.0,1.96313044]
[1724120784859,0.000825,60486.0,60485.0,1.86315587]
[1724120785067,0.001825,60486.0,60485.0,1.96313044]
[1724120785275,0.002825,60486.0,60485.0,1.96313044]
[1724120785448,0.002825,60486.0,60485.0,1.86415587]
[1724120785654,0.001825,60486.0,60485.0,1.86415587]
[1724120785856,0.001825,60486.0,60485.0,1.87393377]
[1724120786055,0.002825,60486.0,60485.0,1.87393377]
[1724120786266,0.002825,60486.0,60485.0,1.50743667]
[1724120786607,0.000825,60486.0,60485.0,1.50643667]
[1724120786811,0.000825,60486.0,60485.0,1.50743667]
[1724120786812,0.002825,60486.0,60485.0,1.50743667]
[1724120787011,0.002825,60486.0,60485.0,1.95112214]
[1724120787217,0.002825,60486.0,60485.0,1.50743667]
[1724120787422,0.002825,60486.0,60485.0,1.55986768]
[1724120787634,0.002825,60486.0,60485.0,1.55686768]
[1724120787966,0.002825,60486.0,60485.0,1.50743667]
[1724120788174,0.000825,60486.0,60485.0,1.55585296]
[1724120788399,0.002825,60486.0,60485.0,1.50743667]
[1724120788838,0.002825,60486.0,60485.0,1.65685296]
[1724120789002,0.002825,60486.0,60485.0,1.65685262]
[1724120789185,0.002825,60486.0,60485.0,1.65685269]
[1724120789583,0.001825,60486.0,60485.0,1.65685269]
[1724120789785,0.001825,60486.0,60485.0,1.65585269]
[1724120789984,0.001825,60486.0,60485.0,1.60743667]
[1724120790262,0.002825,60486.0,60485.0,1.60743667]
[1724120791352,0.002825,60486.0,60485.0,1.61043667]
[1724120791567,0.002825,60486.0,60485.0,2.49043667]
[1724120791772,0.002825,60486.0,60485.0,1.61043667]
[1724120791974,0.002825,60486.0,60485.0,1.60743667]
[1724120792935,0.002825,60486.0,60485.0,2.41743667]
[1724120793131,0.002825,60486.0,60485.0,1.60843667]
[1724120793337,0.002825,60486.0,60485.0,1.60743667]
[1724120796828,0.001825,60486.0,60485.0,1.60643667]
[1724120797026,0.000825,60486.0,60485.0,1.60643667]
[1724120797227,0.001825,60486.0,60485.0,1.60743667]
[1724120797452,0.002825,60486.0,60485.0,1.60743667]
[1724120803183,0.002825,60486.0,60485.0,1.60065877]
[1724120803583,0.002825,60486.0,60485.0,0.16633]
[1724120803792,0.002825,60486.0,60485.0,0.0019075]
[1724120803948,0.144425,60486.0,60485.0,0.0019075]
[1724120804557,0.143425,60486.0,60485.0,0.0009075]
[1724120805005,0.142425,60486.0,60485.0,0.0019075]
[1724120805405,0.142425,60486.0,60485.0,0.0009075]
[1724120806868,0.142425,60486.0,60485.0,0.0019075]
[1724120807074,0.142425,60486.0,60485.0,0.0009075]
[1724120807905,0.142425,60486.0,60485.0,0.0019075]
[1724120809131,0.142425,60486.0,60485.0,0.17054365]
[1724120809132,0.076225,60486.0,60485.0,0.17054365]
[1724120809306,0.000825,60486.0,60485.0,0.50120365]
[1724120811572,0.000825,60486.0,60485.0,0.57970365]
[1724120813045,0.000825,60486.0,60485.0,0.50120365]
[1724120813452,0.000825,60486.0,60485.0,0.50020365]
[1724120813713,0.000825,60486.0,60485.0,0.50420365]
[1724120813714,0.001825,60486.0,60485.0,0.50420365]
[1724120813898,0.000825,60486.0,60485.0,0.50020365]
[1724120814389,0.001825,60486.0,60485.0,0.50420365]
[1724120814598,0.000825,60486.0,60485.0,0.50020365]
[1724120815009,0.000825,60486.0,60485.0,0.50420365]
[1724120815218,0.001825,60486.0,60485.0,1.00490627]
[1724120815578,0.001825,60486.0,60485.0,1.09330627]
[1724120815779,0.001825,60486.0,60485.0,1.42696627]
[1724120815980,0.001825,60486.0,60485.0,1.50706627]
[1724120817000,0.000825,60486.0,60485.0,1.50606627]
[1724120817197,0.000825,60486.0,60485.0,1.50206627]
[1724120817606,0.001825,60486.0,60485.0,1.50606627]
[1724120818219,0.002825,60486.0,60485.0,1.50606627]
[1724120821042,0.002825,60486.0,60485.0,1.50906627]
[1724120821266,0.002825,60486.0,60485.0,1.50606627]
[1724120822226,0.002825,60486.0,60485.0,1.42296627]
[1724120823759,0.002825,60486.0,60485.0,1.02690627]
[1724120824359,0.002825,60486.0,60485.0,0.67224627]
[1724120824560,0.002825,60486.0,60485.0,0.5008975]
[1724120824561,0.078025,60486.0,60485.0,0.5008975]
[1724120824786,0.077025,60486.0,60485.0,0.5008975]
[1724120824899,0.076025,60486.0,60485.0,0.4968975]
[1724120825132,0.077025,60486.0,60485.0,0.5028975]
[1724120825541,0.078025,60486.0,60485.0,0.5028975]
[1724120825921,0.077025,60486.0,60485.0,0.4968975]
[1724120826932,0.076025,60486.0,60485.0,0.4968975]
[1724120827546,0.076025,60486.0,60485.0,0.4988975]
[1724120831545,0.000825,60486.0,60485.0,1.06330627]
[1724120831950,0.000825,60486.0,60485.0,1.06630627]
[1724120832151,0.000825,60486.0,60485.0,1.31320627]
[1724120832497,0.000825,60486.0,60485.0,1.18010627]
[1724120834158,0.000825,60486.0,60485.0,1.11570627]
[1724120835763,0.000825,60486.0,60485.0,1.02490627]
[1724120836191,0.000825,60486.0,60485.0,1.11570627]
[1724120836945,0.000825,60486.0,60485.0,1.11870627]
[1724120837941,0.000825,60486.0,60485.0,1.44936627]
[1724120838130,0.000825,60486.0,60485.0,2.94936627]
[1724120838966,0.000825,60486.0,60485.0,1.44936627]
[1724120839165,0.000825,60486.0,60485.0,1.02790627]
[1724120839439,0.000825,60486.0,60485.0,1.11870627]
[1724120839692,0.000825,60486.0,60485.0,1.11570627]
[1724120839946,0.000825,60486.0,60485.0,1.44636627]
[1724120840192,0.000825,60486.0,60485.0,1.11570627]
[1724120840659,0.000825,60486.0,60485.0,1.02490627]
[1724120840807,0.000825,60486.0,60485.0,1.02790627]
[1724120841014,0.000825,60486.0,60485.0,1.02490627]
[1724120841409,0.000825,60486.0,60485.0,1.35856627]
[1724120841611,0.000825,60486.0,60485.0,1.35556627]
[1724120842214,0.000825,60486.0,60485.0,1.35856627]
[1724120842416,0.000825,60486.0,60485.0,1.02790627]
[1724120843068,0.000825,60486.0,60485.0,1.35856627]
[1724120843264,0.000825,60486.0,60485.0,1.02790627]
[1724120843467,0.000825,60486.0,60485.0,1.02490627]
[1724120844665,0.083125,60486.0,60485.0,1.02490627]
[1724120845385,0.083125,60486.0,60485.0,1.02790627]
[1724120846044,0.083125,60486.0,60485.0,1.02490627]
[1724120846282,0.083125,60486.0,60485.0,1.02790627]
[1724120846530,0.083125,60486.0,60485.0,1.02490627]
[1724120847002,0.083125,60486.0,60485.0,1.02790627]
[1724120848222,0.083125,60486.0,60485.0,1.07744876]
[1724120849175,0.083125,60486.0,60485.0,1.02790627]
[1724120849176,0.000825,60486.0,60485.0,1.02790627]
[1724120849386,0.000825,60486.0,60485.0,1.02490627]
[1724120849874,0.000825,60486.0,60485.0,1.02790627]
[1724120850208,0.000825,60486.0,60485.0,1.02490627]
[1724120851062,0.000825,60486.0,60485.0,1.02790627]
[1724120851832,0.000825,60486.0,60485.0,1.0774796]
[1724120852031,0.000825,60486.0,60485.0,1.0744796]
[1724120852304,0.000825,60486.0,60485.0,1.02790627]
[1724120852467,0.000825,60486.0,60485.0,1.02490627]
[1724120853268,0.064625,60486.0,60485.0,0.33958627]
[1724120853455,0.142225,60486.0,60485.0,0.0029075]
[1724120861680,0.142225,60486.0,60485.0,0.0937075]
[1724120862283,0.142225,60486.0,60485.0,0.0957075]
[1724120862897,0.142225,60486.0,60485.0,0.0029075]
[1724120865402,0.638207,60486.0,60485.0,0.0029075]
[1724120865644,0.968862,60486.0,60485.0,0.0029075]
[1724120866468,0.970862,60486.0,60485.0,0.0009075]
[1724120866819,0.968862,60486.0,60485.0,0.0009075]
[1724120868150,0.969862,60486.0,60485.0,0.0009075]
[1724120868417,0.975862,60486.0,60485.0,0.0009075]
[1724120868623,0.82869,60482.0,60481.0,0.0009075]
[1724120868851,0.82869,60482.0,60470.0,0.009075]
[1724120868852,0.166365,60472.0,60470.0,0.009075]
[1724120869080,0.41291377,60472.0,60470.0,0.009075]
[1724120869276,1.40510677,60472.0,60470.0,0.009075]
[1724120869711,1.46550677,60472.0,60470.0,0.009075]
[1724120869913,1.46650677,60472.0,60470.0,0.009075]
[1724120870123,1.47050677,60472.0,60470.0,0.009075]
[1724120871065,1.48450677,60472.0,60471.0,0.0012]
[1724120871265,1.308158,60472.0,60471.0,0.0012]
[1724120871666,1.322158,60472.0,60471.0,0.0012]
[1724120872105,1.308158,60472.0,60471.0,0.0012]
[1724120872311,1.294158,60472.0,60471.0,0.0002]
[1724120872521,1.308158,60472.0,60471.0,0.0002]
[1724120872858,1.308158,60472.0,60471.0,0.0012]
[1724120872859,1.322158,60472.0,60471.0,0.0012]
[1724120873060,1.308158,60472.0,60471.0,0.0002]
[1724120873267,1.294158,60472.0,60471.0,0.0002]
[1724120873468,1.308158,60472.0,60471.0,0.0012]
[1724120873667,1.308158,60472.0,60471.0,0.0002]
[1724120874072,1.308158,60472.0,60471.0,0.0012]
[1724120874073,1.322158,60472.0,60471.0,0.0012]
[1724120874249,1.294158,60472.0,60471.0,0.0002]
[1724120874675,1.308158,60472.0,60471.0,0.0002]
[1724120875584,0.646696,60472.0,60471.0,0.0002]
[1724120875782,0.014,60472.0,60471.0,0.0021075]
[1724120876189,0.028,60472.0,60471.0,0.0021075]
[1724120876389,0.014,60472.0,60471.0,0.0011075]
[1724120876568,0.014,60472.0,60471.0,0.0021075]
[1724120876569,0.028,60472.0,60471.0,0.0021075]
[1724120877091,0.014,60472.0,60471.0,0.0011075]
[1724120877293,0.02,60472.0,60471.0,0.0021075]
[1724120877839,0.006,60472.0,60471.0,0.0021075]
[1724120877995,0.018,60472.0,60471.0,0.0021075]
[1724120878480,0.006,60472.0,60471.0,0.0021075]
[1724120878853,0.012,60472.0,60471.0,0.0021075]
[1724120880367,0.012,60472.0,60471.0,0.1674755]
[1724120880920,0.012,60472.0,60471.0,0.0021075]
[1724120882447,0.319765,60472.0,60471.0,0.0021075]
[1724120882574,0.650496,60472.0,60471.0,0.0021075]
[1724120885404,0.981227,60472.0,60471.0,0.0021075]
[1724120885668,1.311958,60472.0,60471.0,0.0021075]
[1724120887996,0.981227,60472.0,60471.0,0.0021075]
[1724120889004,0.982227,60472.0,60471.0,0.0021075]
[1724120889203,0.981227,60472.0,60471.0,0.0021075]
[1724120891301,0.650496,60472.0,60471.0,0.0021075]
[1724120891886,0.584496,60472.0,60471.0,0.0021075]
[1724120900849,0.980027,60472.0,60471.0,0.0021075]
[1724120902374,1.310758,60472.0,60471.0,0.0021075]
[1724120904444,1.401658,60472.0,60471.0,0.0021075]
[1724120904633,1.402658,60472.0,60471.0,0.0021075]
[1724120904833,1.401658,60472.0,60471.0,0.0021075]
[1724120907455,1.310758,60472.0,60471.0,0.0021075]
[1724120911268,0.980027,60472.0,60471.0,0.0021075]
[1724120911620,0.915227,60472.0,60471.0,0.0021075]
[1724120912032,0.916227,60472.0,60471.0,0.0021075]
[1724120912454,0.915227,60472.0,60471.0,0.0021075]
[1724120912655,0.916227,60472.0,60471.0,0.0021075]
[1724120914916,0.915227,60472.0,60471.0,0.0021075]
[1724120916107,0.916227,60472.0,60471.0,0.0021075]
[1724120916739,0.915227,60472.0,60471.0,0.0021075]
[1724120917143,0.916227,60472.0,60471.0,0.0021075]
[1724120918700,1.41730677,60472.0,60471.0,0.0021075]
[1724120919062,1.245958,60472.0,60471.0,0.0021075]
[1724120920066,0.945958,60472.0,60471.0,0.0021075]
[1724120920470,1.111323,60472.0,60471.0,0.0021075]
[1724120923171,1.189623,60472.0,60471.0,0.0021075]
[1724120924282,1.190623,60472.0,60471.0,0.0021075]
[1724120924658,1.189623,60472.0,60471.0,0.0021075]
[1724120925611,1.42277177,60472.0,60471.0,0.0021075]
[1724120929029,1.42377177,60472.0,60471.0,0.0021075]
[1724120929249,1.42277177,60472.0,60471.0,0.0021075]
[1724120930134,1.42377177,60472.0,60471.0,0.0021075]
[1724120931586,1.47640453,60472.0,60471.0,0.0021075]
[1724120932976,1.80713553,60472.0,60471.0,0.0021075]
[1724120933237,1.90713553,60472.0,60471.0,0.0021075]
[1724120933829,1.90813553,60472.0,60471.0,0.0021075]
[1724120934182,2.02203553,60472.0,60471.0,0.0021075]
[1724120934654,2.02203553,60472.0,60471.0,0.0011075]
[1724120935091,2.05003553,60472.0,60471.0,0.0031075]
[1724120935503,2.03603553,60472.0,60471.0,0.0021075]
[1724120935709,2.05003553,60472.0,60471.0,0.0031075]
[1724120936142,2.03603553,60472.0,60471.0,0.0021075]
[1724120936553,2.05003553,60472.0,60471.0,0.0031075]
[1724120937966,1.95913553,60472.0,60471.0,0.0031075]
[1724120938172,2.02603553,60472.0,60471.0,0.0031075]
[1724120938608,1.60440453,60472.0,60471.0,0.0031075]
[1724120938790,1.27367353,60472.0,60471.0,0.0031075]
[1724120938998,1.08094077,60472.0,60471.0,0.0031075]
[1724120939161,0.65020977,60472.0,60471.0,0.0031075]
[1724120939711,0.478861,60472.0,60471.0,0.0031075]
[1724120940134,0.478861,60472.0,60471.0,0.1388075]
[1724120940135,0.028,60472.0,60471.0,0.1388075]
[1724120940490,0.028,60472.0,60471.0,1.0565495]
[1724120941225,0.014,60472.0,60471.0,1.0555495]
[1724120941629,0.04918502,60474.0,60473.0,0.631789]
[1724120944509,0.05718502,60474.0,60473.0,0.632789]
[1724120944733,0.016,60474.0,60473.0,0.633789]
[1724120946932,0.016825,60474.0,60473.0,0.633789]
[1724120948088,0.016825,60474.0,60473.0,0.964515]
[1724120953564,0.016825,60474.0,60473.0,0.963515]
[1724120953565,0.008825,60474.0,60473.0,0.963515]
[1724120953990,0.000825,60474.0,60473.0,0.966515]
[1724120954373,0.001825,60474.0,60473.0,0.970515]
[1724120954755,0.002825,60474.0,60473.0,0.976515]
[1724120955561,0.001825,60474.0,60473.0,0.968515]
[1724120955959,0.001825,60474.0,60473.0,0.970515]
[1724120956282,0.001825,60474.0,60473.0,0.976515]
[1724120956283,0.002825,60474.0,60473.0,0.976515]
[1724120956859,0.001825,60474.0,60473.0,0.970515]
[1724120957065,0.002825,60474.0,60473.0,0.979515]
[1724120957226,0.001825,60474.0,60473.0,0.971515]
[1724120957628,0.002825,60474.0,60473.0,0.980515]
[1724120958819,0.002825,60474.0,60473.0,1.311241]
[1724120961554,0.002825,60474.0,60473.0,0.980515]
[1724120962568,0.002825,60474.0,60473.0,1.071315]
[1724120963313,0.002825,60474.0,60473.0,1.069315]
[1724120964278,0.002825,60474.0,60473.0,1.071315]
[1724120965894,0.002825,60474.0,60473.0,1.402041]
[1724120966669,0.002825,60474.0,60473.0,1.400041]
[1724120967146,0.002825,60474.0,60473.0,1.402041]
[1724120967725,0.002825,60474.0,60473.0,1.400041]
[1724120967927,0.002825,60474.0,60473.0,1.402041]
[1724120968336,0.002825,60474.0,60473.0,1.400041]
[1724120968492,0.002825,60474.0,60473.0,0.933615]
[1724120969125,0.002825,60474.0,60473.0,0.602889]
[1724120970093,0.001825,60474.0,60473.0,0.595889]
[1724120970600,0.000825,60474.0,60473.0,0.586889]
[1724120970903,0.000825,60474.0,60473.0,0.589889]
[1724120971546,0.000825,60474.0,60473.0,0.591889]
[1724120971995,0.000825,60474.0,60473.0,0.168363]
[1724120972524,0.000825,60474.0,60473.0,0.170363]
[1724120977839,0.147325,60474.0,60473.0,0.005]
[1724120978872,0.147325,60474.0,60473.0,0.170363]
[1724120979075,0.147325,60474.0,60473.0,0.005]
[1724120979076,0.083925,60474.0,60473.0,0.005]
[1724120982361,0.249285,60474.0,60473.0,0.005]
[1724120983061,0.083925,60474.0,60473.0,0.005]
[1724120983265,0.000825,60474.0,60473.0,0.170363]
[1724120983620,0.000825,60474.0,60473.0,0.501089]
[1724120984195,0.000825,60474.0,60473.0,0.170363]
[1724120985050,0.311685,60474.0,60473.0,0.005]
[1724120985615,0.31499127,60474.0,60473.0,0.005]
[1724120985915,0.311685,60474.0,60473.0,0.005]
[1724120987241,0.146325,60474.0,60473.0,0.002]
[1724120987672,0.146325,60474.0,60472.0,0.0009075]
[1724120988086,0.149325,60474.0,60472.0,0.0009075]
[1724120988287,0.314685,60474.0,60472.0,0.0009075]
[1724120988499,0.146325,60474.0,60472.0,0.0009075]
[1724120989011,0.147325,60474.0,60472.0,0.0009075]
[1724120989269,0.245363,60473.0,60472.0,0.0009075]
[1724120989509,0.08,60473.0,60472.0,0.0009075]
[1724120991530,0.08,60473.0,60472.0,0.0019075]
[1724120992718,0.08,60473.0,60472.0,0.0039075]
[1724120993498,0.000825,60474.0,60472.0,0.0039075]
[1724120994396,0.000825,60474.0,60472.0,0.0009075]
[1724120994727,0.000825,60474.0,60472.0,0.1672715]
[1724120995377,0.000825,60474.0,60472.0,0.0019075]
[1724121001702,0.00413127,60474.0,60472.0,0.0019075]
[1724121002115,0.000825,60474.0,60472.0,0.0019075]
[1724121007876,0.166185,60474.0,60472.0,0.0019075]
[1724121008885,0.000825,60474.0,60472.0,0.0019075]
[1724121009560,0.000825,60474.0,60472.0,0.1672725]
[1724121012012,0.000825,60474.0,60472.0,0.1672715]
[1724121012195,0.000825,60474.0,60473.0,0.970015]
[1724121012411,0.000825,60474.0,60473.0,1.52371277]
[1724121012629,0.000825,60474.0,60473.0,2.17142719]
[1724121013245,0.000825,60474.0,60473.0,2.29542659]
[1724121013496,0.001825,60474.0,60473.0,2.32042659]
[1724121013699,0.001825,60474.0,60473.0,2.19642719]
[1724121013902,0.000825,60474.0,60473.0,2.19342719]
[1724121014149,0.000825,60474.0,60473.0,2.28722719]
[1724121014346,0.001825,60474.0,60473.0,2.29422719]
[1724121014706,0.002825,60474.0,60473.0,2.30422719]
[1724121016282,0.002825,60474.0,60473.0,2.42808647]
[1724121016704,0.002825,60474.0,60473.0,2.40331564]
[1724121016934,0.002825,60474.0,60473.0,2.30422719]
[1724121017125,0.002825,60474.0,60473.0,2.42808647]
[1724121017330,0.002825,60474.0,60473.0,2.30222719]
[1724121017529,0.002825,60474.0,60473.0,2.31355959]
[1724121017681,0.002825,60474.0,60473.0,1.78845842]
[1724121017870,0.002825,60474.0,60473.0,1.4218734]
[1724121019597,0.002825,60474.0,60473.0,1.47140601]
[1724121020563,0.002825,60474.0,60473.0,1.38060601]
[1724121020785,0.002825,60474.0,60473.0,1.4218734]
[1724121021556,0.002825,60474.0,60473.0,1.61822217]
[1724121021673,0.002825,60474.0,60473.0,1.69252029]
[1724121021879,0.002825,60474.0,60473.0,1.3310734]
[1724121022091,0.002825,60474.0,60473.0,1.47138964]
[1724121022311,0.002825,60474.0,60473.0,1.66773841]
[1724121022528,0.002825,60474.0,60473.0,1.98479764]
[1724121022949,0.002825,60474.0,60473.0,3.54528212]
[1724121023152,0.000825,60486.0,60479.0,1.161425]
[1724121023395,0.000825,60486.0,60479.0,1.93011799]
[1724121023661,0.000825,60486.0,60479.0,2.2980125]
[1724121024175,0.000825,60486.0,60479.0,1.97796101]
[1724121024413,0.000825,60486.0,60479.0,1.98096101]
[1724121024616,0.001825,60480.0,60479.0,2.01270465]
[1724121024838,0.001825,60480.0,60479.0,2.30500541]
[1724121024985,0.000825,60480.0,60479.0,2.3692227]
[1724121025188,0.001825,60480.0,60479.0,2.30800541]
[1724121025392,0.001825,60480.0,60479.0,1.99693428]
[1724121025877,0.001825,60480.0,60479.0,1.99093428]
[1724121026285,0.001825,60480.0,60479.0,1.94146828]
[1724121027015,0.001825,60480.0,60479.0,2.00491961]
[1724121027215,0.001825,60480.0,60479.0,2.00491084]
[1724121027487,0.001825,60480.0,60479.0,1.95546828]
[1724121027765,0.001825,60480.0,60479.0,2.00191084]
[1724121027991,0.001825,60480.0,60479.0,2.00491084]
[1724121029389,0.001825,60480.0,60479.0,1.95546828]
[1724121030019,0.001825,60480.0,60479.0,1.42842651]
[1724121031185,0.000825,60480.0,60479.0,1.41642651]
[1724121031381,0.000825,60480.0,60479.0,1.62577528]
[1724121031787,0.000825,60480.0,60479.0,1.62877528]
[1724121031999,0.000825,60480.0,60479.0,1.62577528]
[1724121032192,0.000825,60480.0,60479.0,1.61177528]
[1724121032398,0.001825,60480.0,60479.0,1.62577528]
[1724121033011,0.000825,60480.0,60479.0,1.61177528]
[1724121033217,0.001825,60480.0,60479.0,1.62577528]
[1724121033462,0.001825,60480.0,60479.0,1.62877528]
[1724121035117,0.001825,60480.0,60479.0,2.00591084]
[1724121035320,0.000825,60486.0,60479.0,2.77891084]
[1724121035497,0.000825,60486.0,60485.0,1.72067]
[1724121035670,0.000825,60486.0,60485.0,1.9031112]
[1724121035874,0.000825,60486.0,60485.0,1.9261112]
[1724121036080,0.000825,60486.0,60485.0,1.97551055]
[1724121036375,0.000825,60486.0,60485.0,1.97549399]
[1724121036583,0.001825,60486.0,60485.0,1.9261112]
[1724121036997,0.001825,60486.0,60485.0,1.97549399]
[1724121037204,0.000825,60486.0,60485.0,1.97549399]
[1724121037403,0.001825,60486.0,60485.0,1.9381112]
[1724121037608,0.000825,60491.0,60490.0,1.554248]
[1724121037815,0.000826,60500.0,60499.0,0.578974]
[1724121037975,0.000826,60500.0,60499.0,1.17170577]
[1724121038175,0.000826,60500.0,60499.0,1.50228877]
[1724121038421,0.000826,60500.0,60499.0,1.85787177]